[Event "Early-Titled-Tuesday-Blitz-October-17-2023"]
[Site "Chess.com"]
[Date "2023.10.17"]
[Round "7"]
[White "Eagle_2019"]
[Black "sorch29"]
[Result "1-0"]
[WhiteElo "2703"]
[BlackElo "2407"]
[TimeControl "180+1"]
[EndTime "9:21:07 PDT"]
[Termination "Eagle_2019 won by resignation"]

1. d4 {[%clk 0:03:00.9]} 1... Nf6 {[%clk 0:02:58.9]} 2. Bg5 {[%clk 0:02:59.9]}
2... Ne4 {[%clk 0:02:58.2]} 3. Bf4 {[%clk 0:02:56.3]} 3... d5 {[%clk 0:02:58.1]}
4. e3 {[%clk 0:02:55.7]} 4... e6 {[%clk 0:02:52.7]} 5. Bd3 {[%clk 0:02:54.8]}
5... Bd6 {[%clk 0:02:48.1]} 6. Bxe4 {[%clk 0:02:53.8]} 6... Bxf4 {[%clk
0:02:45.8]} 7. exf4 {[%clk 0:02:52.2]} 7... dxe4 {[%clk 0:02:46]} 8. Nc3 {[%clk
0:02:51.8]} 8... f5 {[%clk 0:02:43.4]} 9. f3 {[%clk 0:02:51.1]} 9... Nc6 {[%clk
0:02:26]} 10. fxe4 {[%clk 0:02:47]} 10... Nxd4 {[%clk 0:02:22.8]} 11. Nf3 {[%clk
0:02:46.5]} 11... Nxf3+ {[%clk 0:02:21.6]} 12. Qxf3 {[%clk 0:02:44.9]} 12... O-O
{[%clk 0:02:21.6]} 13. O-O {[%clk 0:02:42.1]} 13... Qf6 {[%clk 0:02:21]} 14.
exf5 {[%clk 0:02:40.8]} 14... exf5 {[%clk 0:02:20.1]} 15. Nd5 {[%clk 0:02:38.2]}
15... Qf7 {[%clk 0:02:19.9]} 16. Rfe1 {[%clk 0:02:27]} 16... c6 {[%clk
0:02:19.6]} 17. Nc3 {[%clk 0:02:20.1]} 17... Be6 {[%clk 0:02:18.9]} 18. Rad1
{[%clk 0:02:19.5]} 18... Rad8 {[%clk 0:02:08.7]} 19. Qe3 {[%clk 0:02:18.6]}
19... Rxd1 {[%clk 0:01:43]} 20. Rxd1 {[%clk 0:02:19.5]} 20... b6 {[%clk
0:01:36.8]} 21. Qe5 {[%clk 0:02:10.8]} 21... Re8 {[%clk 0:01:32.9]} 22. Qd6
{[%clk 0:02:10.1]} 22... c5 {[%clk 0:01:31.2]} 23. h3 {[%clk 0:02:09.8]} 23...
h6 {[%clk 0:01:26.7]} 24. a4 {[%clk 0:02:09.2]} 24... Re7 {[%clk 0:01:09.8]} 25.
Qb8+ {[%clk 0:01:57.2]} 25... Kh7 {[%clk 0:01:09.5]} 26. a5 {[%clk 0:01:43.6]}
26... bxa5 {[%clk 0:01:04.6]} 27. Qb5 {[%clk 0:01:28.1]} 27... Rb7 {[%clk
0:01:02.7]} 28. Qxc5 {[%clk 0:01:23.2]} 28... Rxb2 {[%clk 0:01:02.9]} 29. Nb5
{[%clk 0:00:45.3]} 29... Qb7 {[%clk 0:00:52.8]} 30. Nd4 {[%clk 0:00:43]} 30...
Bc8 {[%clk 0:00:46.1]} 31. Qxa5 {[%clk 0:00:40.7]} 31... Qb6 {[%clk 0:00:39.2]}
32. Qc3 {[%clk 0:00:38.3]} 32... Bb7 {[%clk 0:00:29.7]} 33. Kh2 {[%clk
0:00:37.9]} 33... a5 {[%clk 0:00:26.8]} 34. Nxf5 {[%clk 0:00:35.3]} 34... Qg6
{[%clk 0:00:26.1]} 35. g4 {[%clk 0:00:30.9]} 35... Rb6 {[%clk 0:00:06.7]} 36.
Rd7 {[%clk 0:00:24.4]} 36... Rf6 {[%clk 0:00:03.1]} 37. Rxb7 {[%clk 0:00:21.1]}
1-0

[Event "Early-Titled-Tuesday-Blitz-October-17-2023"]
[Site "Chess.com"]
[Date "2023.10.17"]
[Round "7"]
[White "Kostukov_Alex"]
[Black "MdSharifHossain"]
[Result "0-1"]
[WhiteElo "2365"]
[BlackElo "2216"]
[TimeControl "180+1"]
[EndTime "9:21:08 PDT"]
[Termination "MdSharifHossain won by checkmate"]

1. g3 {[%clk 0:02:59.6]} 1... d5 {[%clk 0:02:57.4]} 2. Bg2 {[%clk 0:02:57.2]}
2... c6 {[%clk 0:02:58.2]} 3. d3 {[%clk 0:02:57.6]} 3... Nf6 {[%clk 0:02:53.9]}
4. e4 {[%clk 0:02:57.6]} 4... e5 {[%clk 0:02:51.9]} 5. Qe2 {[%clk 0:02:55.3]}
5... Bd6 {[%clk 0:02:49.6]} 6. Nf3 {[%clk 0:02:52.7]} 6... O-O {[%clk
0:02:48.9]} 7. O-O {[%clk 0:02:50.1]} 7... d4 {[%clk 0:02:43.3]} 8. a4 {[%clk
0:02:47.7]} 8... Kh8 {[%clk 0:02:20.2]} 9. Na3 {[%clk 0:02:46.4]} 9... Ng8
{[%clk 0:02:18.7]} 10. Nc4 {[%clk 0:02:45.7]} 10... Be6 {[%clk 0:02:15.5]} 11.
Ncxe5 {[%clk 0:02:43.2]} 11... f5 {[%clk 0:02:09.9]} 12. Ng5 {[%clk 0:02:33.5]}
12... Qf6 {[%clk 0:01:54]} 13. Qh5 {[%clk 0:02:08]} 13... Nh6 {[%clk 0:01:47.3]}
14. Nxe6 {[%clk 0:02:07.5]} 14... Qxe6 {[%clk 0:01:44.1]} 15. Bxh6 {[%clk
0:01:52.6]} 15... Bxe5 {[%clk 0:01:42.3]} 16. Bd2 {[%clk 0:01:29.9]} 16... f4
{[%clk 0:01:40.4]} 17. Bh3 {[%clk 0:01:28.6]} 17... Qf6 {[%clk 0:01:35.4]} 18.
gxf4 {[%clk 0:01:23]} 18... Bxf4 {[%clk 0:01:35]} 19. Bxf4 {[%clk 0:01:05.5]}
19... Qxf4 {[%clk 0:01:33.9]} 20. Qg4 {[%clk 0:01:04.9]} 20... Qd2 {[%clk
0:01:22.4]} 21. Qd1 {[%clk 0:00:58.2]} 21... Qh6 {[%clk 0:01:19.5]} 22. Bg2
{[%clk 0:00:55.6]} 22... Nd7 {[%clk 0:01:19]} 23. Qc1 {[%clk 0:00:53]} 23... Rf4
{[%clk 0:01:15.3]} 24. Qd2 {[%clk 0:00:47.7]} 24... Ne5 {[%clk 0:01:09.8]} 25.
Kh1 {[%clk 0:00:36.1]} 25... Raf8 {[%clk 0:01:02.2]} 26. h3 {[%clk 0:00:24.1]}
26... Nf3 {[%clk 0:00:51.9]} 27. Qe2 {[%clk 0:00:21.3]} 27... Nh4 {[%clk
0:00:42.8]} 28. Kh2 {[%clk 0:00:18.1]} 28... R8f6 {[%clk 0:00:37.4]} 29. f3
{[%clk 0:00:17.1]} 29... Rg6 {[%clk 0:00:35.4]} 30. Rg1 {[%clk 0:00:16.6]} 30...
Qg5 {[%clk 0:00:32.1]} 31. Bh1 {[%clk 0:00:15.7]} 31... Qe5 {[%clk 0:00:24.5]}
32. Rg3 {[%clk 0:00:13]} 32... Rxf3 {[%clk 0:00:19.1]} 33. Rg1 {[%clk
0:00:10.4]} 33... Rgxg3 {[%clk 0:00:17.4]} 34. Bxf3 {[%clk 0:00:06.6]} 34...
Nxf3+ {[%clk 0:00:15.4]} 35. Kh1 {[%clk 0:00:05.6]} 35... Rxg1# {[%clk
0:00:15.1]} 0-1

[Event "Early-Titled-Tuesday-Blitz-October-17-2023"]
[Site "Chess.com"]
[Date "2023.10.17"]
[Round "7"]
[White "js20000"]
[Black "suyu28"]
[Result "1-0"]
[WhiteElo "2892"]
[BlackElo "2740"]
[TimeControl "180+1"]
[EndTime "9:21:09 PDT"]
[Termination "js20000 won on time"]

1. Nf3 {[%clk 0:03:00.9]} 1... Nf6 {[%clk 0:02:57]} 2. c4 {[%clk 0:02:59.9]}
2... e6 {[%clk 0:02:52.9]} 3. e3 {[%clk 0:02:59]} 3... d5 {[%clk 0:02:51.1]} 4.
Nc3 {[%clk 0:02:58.7]} 4... b6 {[%clk 0:02:47.7]} 5. d4 {[%clk 0:02:56.9]} 5...
Bd6 {[%clk 0:02:42.2]} 6. Bd3 {[%clk 0:02:52.7]} 6... Bb7 {[%clk 0:02:37.2]} 7.
b3 {[%clk 0:02:52.2]} 7... a6 {[%clk 0:02:36.1]} 8. O-O {[%clk 0:02:51.4]} 8...
O-O {[%clk 0:02:36.7]} 9. Qc2 {[%clk 0:02:49.8]} 9... Nbd7 {[%clk 0:02:35.6]}
10. e4 {[%clk 0:02:40.9]} 10... dxe4 {[%clk 0:02:34.5]} 11. Nxe4 {[%clk
0:02:41.8]} 11... Nxe4 {[%clk 0:02:33.5]} 12. Bxe4 {[%clk 0:02:42.7]} 12... Bxe4
{[%clk 0:02:33.5]} 13. Qxe4 {[%clk 0:02:43.6]} 13... Nf6 {[%clk 0:02:33.7]} 14.
Qh4 {[%clk 0:02:40.6]} 14... c5 {[%clk 0:02:22.6]} 15. Bg5 {[%clk 0:02:39.7]}
15... Be7 {[%clk 0:02:23]} 16. Rad1 {[%clk 0:02:39.1]} 16... h6 {[%clk
0:02:11.3]} 17. dxc5 {[%clk 0:02:34.7]} 17... hxg5 {[%clk 0:02:03]} 18. Nxg5
{[%clk 0:02:35.6]} 18... Qc7 {[%clk 0:02:02.2]} 19. Rd3 {[%clk 0:02:34.6]} 19...
Nh5 {[%clk 0:01:10.3]} 20. Qxh5 {[%clk 0:02:32.2]} 20... Bxg5 {[%clk 0:01:10]}
21. Qxg5 {[%clk 0:02:33.1]} 21... Qxc5 {[%clk 0:01:10.3]} 22. Qxc5 {[%clk
0:02:30.8]} 22... bxc5 {[%clk 0:01:11.2]} 23. Rfd1 {[%clk 0:02:30.8]} 23... a5
{[%clk 0:01:11.2]} 24. a4 {[%clk 0:02:30.1]} 24... Rab8 {[%clk 0:01:09.7]} 25.
Kf1 {[%clk 0:02:26.9]} 25... Rb6 {[%clk 0:01:08.2]} 26. Re3 {[%clk 0:02:26.7]}
26... Rfb8 {[%clk 0:01:08]} 27. Rdd3 {[%clk 0:02:26.7]} 27... g6 {[%clk
0:01:07.8]} 28. Ke2 {[%clk 0:02:25.9]} 28... Kg7 {[%clk 0:01:08.3]} 29. Kd2
{[%clk 0:02:26]} 29... Kf6 {[%clk 0:01:07.7]} 30. f4 {[%clk 0:02:25.1]} 30...
R6b7 {[%clk 0:01:05.7]} 31. Kc2 {[%clk 0:02:23.9]} 31... Rh8 {[%clk 0:01:05.7]}
32. h3 {[%clk 0:02:20.4]} 32... Rh4 {[%clk 0:01:02.3]} 33. g4 {[%clk 0:02:20.2]}
33... Ke7 {[%clk 0:00:47]} 34. Re5 {[%clk 0:02:20]} 34... Rc7 {[%clk 0:00:45.3]}
35. Kd2 {[%clk 0:02:04.5]} 35... Rc8 {[%clk 0:00:43.4]} 36. Ke2 {[%clk
0:02:04.6]} 36... f6 {[%clk 0:00:37.9]} 37. Ree3 {[%clk 0:02:01.9]} 37... Rch8
{[%clk 0:00:36.3]} 38. Kf2 {[%clk 0:01:56.2]} 38... Rc8 {[%clk 0:00:36]} 39. Kg2
{[%clk 0:01:56]} 39... Rhh8 {[%clk 0:00:34.8]} 40. f5 {[%clk 0:01:47.4]} 40...
gxf5 {[%clk 0:00:33.5]} 41. gxf5 {[%clk 0:01:48.3]} 41... e5 {[%clk 0:00:29.9]}
42. Rg3 {[%clk 0:01:48.7]} 42... Rcg8 {[%clk 0:00:26.8]} 43. Rg6 {[%clk
0:01:44.6]} 43... Rxg6+ {[%clk 0:00:20.4]} 44. fxg6 {[%clk 0:01:45.5]} 44... f5
{[%clk 0:00:21.3]} 45. Rd5 {[%clk 0:01:40.9]} 45... Kf6 {[%clk 0:00:21.7]} 46.
Rxc5 {[%clk 0:01:41]} 46... Rg8 {[%clk 0:00:21.9]} 47. Rc6+ {[%clk 0:01:41.1]}
47... Kg5 {[%clk 0:00:22.2]} 48. c5 {[%clk 0:01:39.4]} 48... Kf4 {[%clk
0:00:19.7]} 49. Re6 {[%clk 0:01:38.8]} 49... e4 {[%clk 0:00:18.7]} 50. c6 {[%clk
0:01:39]} 50... Ke3 {[%clk 0:00:19.1]} 51. c7 {[%clk 0:01:39.2]} 51... f4 {[%clk
0:00:19]} 52. Kh2 {[%clk 0:01:39]} 52... f3 {[%clk 0:00:17.7]} 53. g7 {[%clk
0:01:36.2]} 53... f2 {[%clk 0:00:14.6]} 54. Rf6 {[%clk 0:01:34.2]} 54... Ke2
{[%clk 0:00:15.1]} 55. h4 {[%clk 0:01:34.4]} 55... e3 {[%clk 0:00:13.6]} 56. Rf8
{[%clk 0:01:15]} 56... f1=Q {[%clk 0:00:11.8]} 57. c8=Q {[%clk 0:01:14.5]} 57...
Rxf8 {[%clk 0:00:02]} 58. gxf8=Q {[%clk 0:01:15.4]} 1-0

[Event "Early-Titled-Tuesday-Blitz-October-17-2023"]
[Site "Chess.com"]
[Date "2023.10.17"]
[Round "7"]
[White "Goryachkina"]
[Black "topin8"]
[Result "1-0"]
[WhiteElo "2649"]
[BlackElo "2493"]
[TimeControl "180+1"]
[EndTime "9:21:09 PDT"]
[Termination "Goryachkina won on time"]

1. e4 {[%clk 0:03:00]} 1... e5 {[%clk 0:02:42.7]} 2. Nf3 {[%clk 0:02:59.8]} 2...
Nc6 {[%clk 0:02:42.7]} 3. Nc3 {[%clk 0:02:59.4]} 3... Nf6 {[%clk 0:02:41.3]} 4.
d4 {[%clk 0:02:59.5]} 4... exd4 {[%clk 0:02:41.3]} 5. Nxd4 {[%clk 0:02:59.9]}
5... Bb4 {[%clk 0:02:41.1]} 6. Nxc6 {[%clk 0:03:00.3]} 6... bxc6 {[%clk
0:02:40.8]} 7. Bd3 {[%clk 0:03:00.7]} 7... d5 {[%clk 0:02:37]} 8. exd5 {[%clk
0:03:00.7]} 8... cxd5 {[%clk 0:02:30.3]} 9. O-O {[%clk 0:03:00.2]} 9... O-O
{[%clk 0:02:29.8]} 10. h3 {[%clk 0:03:00]} 10... c6 {[%clk 0:02:18.6]} 11. Qf3
{[%clk 0:02:59.6]} 11... Bd6 {[%clk 0:02:11]} 12. Bf4 {[%clk 0:02:49.4]} 12...
Rb8 {[%clk 0:02:00.1]} 13. b3 {[%clk 0:02:43.3]} 13... Qc7 {[%clk 0:01:44.2]}
14. Bxd6 {[%clk 0:02:21.5]} 14... Qxd6 {[%clk 0:01:45.1]} 15. Rad1 {[%clk
0:02:21.7]} 15... Qe5 {[%clk 0:01:10.8]} 16. Rfe1 {[%clk 0:02:20.3]} 16... Qd6
{[%clk 0:00:52]} 17. Ne2 {[%clk 0:02:19]} 17... g6 {[%clk 0:00:36.3]} 18. c4
{[%clk 0:02:09.3]} 18... Kg7 {[%clk 0:00:23.8]} 19. cxd5 {[%clk 0:02:05.6]}
19... cxd5 {[%clk 0:00:24.7]} 20. Nd4 {[%clk 0:02:02.3]} 20... Bd7 {[%clk
0:00:24.7]} 21. Re3 {[%clk 0:01:38.1]} 21... Rfe8 {[%clk 0:00:24]} 22. Rde1
{[%clk 0:01:31.8]} 22... Rxe3 {[%clk 0:00:23.7]} 23. fxe3 {[%clk 0:01:27.4]}
23... Re8 {[%clk 0:00:21.4]} 24. Rf1 {[%clk 0:01:23.4]} 24... Re7 {[%clk
0:00:19.2]} 25. Qf2 {[%clk 0:00:57.3]} 25... Qe5 {[%clk 0:00:19.2]} 26. Re1
{[%clk 0:00:57.4]} 26... Ne4 {[%clk 0:00:08.2]} 27. Bxe4 {[%clk 0:00:56.8]}
27... Qxe4 {[%clk 0:00:09.1]} 28. Qb2 {[%clk 0:00:53]} 28... Kg8 {[%clk
0:00:06.7]} 29. Qa3 {[%clk 0:00:45]} 29... Qe5 {[%clk 0:00:02.9]} 30. Nf3 {[%clk
0:00:39.8]} 30... Qf6 {[%clk 0:00:02.2]} 31. Kf2 {[%clk 0:00:34]} 31... Re8
{[%clk 0:00:02.3]} 32. Qxa7 {[%clk 0:00:32]} 32... Bb5 {[%clk 0:00:02.8]} 33.
Qd4 {[%clk 0:00:31.8]} 33... Qa6 {[%clk 0:00:02.3]} 34. a4 {[%clk 0:00:31.3]}
34... Bc6 {[%clk 0:00:02.7]} 35. Rc1 {[%clk 0:00:30.7]} 35... Bb7 {[%clk
0:00:02.5]} 36. Rc7 {[%clk 0:00:29.1]} 36... Ba8 {[%clk 0:00:02.4]} 37. Qf4
{[%clk 0:00:27.8]} 37... Qe6 {[%clk 0:00:02.4]} 38. Nd4 {[%clk 0:00:25.4]} 1-0

[Event "Early-Titled-Tuesday-Blitz-October-17-2023"]
[Site "Chess.com"]
[Date "2023.10.17"]
[Round "7"]
[White "mary-sanna"]
[Black "Jojo_898"]
[Result "0-1"]
[WhiteElo "2166"]
[BlackElo "2349"]
[TimeControl "180+1"]
[EndTime "9:21:11 PDT"]
[Termination "Jojo_898 won by resignation"]

1. d4 {[%clk 0:03:00.5]} 1... Nf6 {[%clk 0:02:59.7]} 2. c4 {[%clk 0:03:00.5]}
2... e6 {[%clk 0:03:00.2]} 3. Nf3 {[%clk 0:02:59.8]} 3... b6 {[%clk 0:03:00.5]}
4. g3 {[%clk 0:02:59.9]} 4... Bb7 {[%clk 0:03:00.1]} 5. Bg2 {[%clk 0:03:00.4]}
5... d5 {[%clk 0:03:00.7]} 6. O-O {[%clk 0:03:00.5]} 6... Be7 {[%clk 0:03:01.2]}
7. Nc3 {[%clk 0:03:00]} 7... O-O {[%clk 0:03:01.1]} 8. Qd3 {[%clk 0:02:58.3]}
8... c5 {[%clk 0:03:00.6]} 9. cxd5 {[%clk 0:02:56.6]} 9... exd5 {[%clk
0:02:59.4]} 10. dxc5 {[%clk 0:02:56.3]} 10... bxc5 {[%clk 0:03:00.1]} 11. Bg5
{[%clk 0:02:53.7]} 11... d4 {[%clk 0:02:59.5]} 12. Na4 {[%clk 0:02:31.5]} 12...
Qa5 {[%clk 0:02:53.1]} 13. b3 {[%clk 0:02:30.9]} 13... Nbd7 {[%clk 0:02:47.8]}
14. Rfc1 {[%clk 0:02:27.4]} 14... Rac8 {[%clk 0:02:43.4]} 15. Nb2 {[%clk
0:02:19.1]} 15... Be4 {[%clk 0:02:38.3]} 16. Qc4 {[%clk 0:02:08.9]} 16... Nb6
{[%clk 0:02:33.4]} 17. b4 {[%clk 0:01:59.4]} 17... Nxc4 {[%clk 0:02:32.6]} 18.
bxa5 {[%clk 0:01:58.9]} 18... Nxb2 {[%clk 0:02:32.9]} 19. Nd2 {[%clk 0:01:54.1]}
19... Bxg2 {[%clk 0:02:32]} 20. Kxg2 {[%clk 0:01:55]} 20... c4 {[%clk
0:02:30.4]} 21. a4 {[%clk 0:01:47.1]} 21... c3 {[%clk 0:02:20.8]} 22. Nb3 {[%clk
0:01:47]} 22... Rfd8 {[%clk 0:02:19.2]} 23. Rab1 {[%clk 0:01:39.7]} 23... h6
{[%clk 0:02:16.6]} 24. Bf4 {[%clk 0:01:32.5]} 24... d3 {[%clk 0:02:05.3]} 25.
exd3 {[%clk 0:01:26.6]} 25... Nxd3 {[%clk 0:02:04.9]} 26. Rc2 {[%clk 0:01:25.8]}
26... Nb4 {[%clk 0:02:03.7]} 27. Re2 {[%clk 0:01:22.7]} 27... c2 {[%clk
0:02:03.9]} 28. Rc1 {[%clk 0:01:18.9]} 28... Nfd5 {[%clk 0:02:02.9]} 29. Bd2
{[%clk 0:01:15.7]} 29... Bf6 {[%clk 0:01:57.5]} 30. a6 {[%clk 0:01:12.5]} 30...
Bb2 {[%clk 0:01:55.7]} 31. Rce1 {[%clk 0:01:11.1]} 31... Nd3 {[%clk 0:01:52.9]}
32. Rf1 {[%clk 0:01:08.1]} 32... c1=Q {[%clk 0:01:46.9]} 33. Nxc1 {[%clk
0:01:04.1]} 33... Bxc1 {[%clk 0:01:45.6]} 34. Ba5 {[%clk 0:01:00.9]} 34... Rd6
{[%clk 0:01:28]} 35. Rd1 {[%clk 0:01:00.4]} 35... Nf6 {[%clk 0:01:24.7]} 36. Re7
{[%clk 0:00:39.6]} 36... Rxa6 {[%clk 0:01:23.2]} 37. Rxd3 {[%clk 0:00:27.5]}
37... Rxa5 {[%clk 0:01:23]} 38. Rb3 {[%clk 0:00:27.2]} 38... Nd5 {[%clk
0:01:12.5]} 39. Rd7 {[%clk 0:00:26.1]} 39... Nb6 {[%clk 0:01:12.3]} 40. Re7
{[%clk 0:00:24.6]} 40... Rxa4 {[%clk 0:01:11.9]} 41. h4 {[%clk 0:00:22.7]} 41...
Ba3 {[%clk 0:01:03.9]} 42. Rb7 {[%clk 0:00:21.5]} 42... Bc5 {[%clk 0:01:03.1]}
43. Rf3 {[%clk 0:00:19.2]} 43... f6 {[%clk 0:01:02.2]} 44. h5 {[%clk 0:00:18.8]}
44... Ra2 {[%clk 0:01:01.5]} 45. Rd7 {[%clk 0:00:17.2]} 45... Re8 {[%clk
0:01:00.3]} 46. Rc7 {[%clk 0:00:14]} 46... Re5 {[%clk 0:00:58.3]} 47. g4 {[%clk
0:00:13.1]} 47... Nd5 {[%clk 0:00:55.8]} 48. Rc8+ {[%clk 0:00:11.3]} 48... Kh7
{[%clk 0:00:54.9]} 49. Rxc5 {[%clk 0:00:11.3]} 49... Nf4+ {[%clk 0:00:53.7]} 50.
Rxf4 {[%clk 0:00:11.6]} 50... Rxc5 {[%clk 0:00:54]} 51. Kg3 {[%clk 0:00:11.7]}
51... Rc3+ {[%clk 0:00:54.5]} 52. f3 {[%clk 0:00:12]} 52... Raa3 {[%clk
0:00:54.9]} 53. Rf5 {[%clk 0:00:12]} 53... Rxf3+ {[%clk 0:00:55.2]} 54. Rxf3
{[%clk 0:00:12]} 54... Rxf3+ {[%clk 0:00:56.1]} 55. Kxf3 {[%clk 0:00:12.9]}
55... g6 {[%clk 0:00:56.9]} 56. Ke4 {[%clk 0:00:13.8]} 56... gxh5 {[%clk
0:00:56.8]} 57. gxh5 {[%clk 0:00:14.7]} 57... Kg7 {[%clk 0:00:57.7]} 58. Kd5
{[%clk 0:00:14.5]} 58... Kf7 {[%clk 0:00:58.6]} 59. Kc6 {[%clk 0:00:15.3]} 59...
f5 {[%clk 0:00:59.3]} 60. Kb7 {[%clk 0:00:16.2]} 60... f4 {[%clk 0:00:59.9]} 61.
Kxa7 {[%clk 0:00:17.1]} 61... f3 {[%clk 0:01:00.8]} 62. Kb6 {[%clk 0:00:17.5]}
62... f2 {[%clk 0:01:01.7]} 0-1

[Event "Early-Titled-Tuesday-Blitz-October-17-2023"]
[Site "Chess.com"]
[Date "2023.10.17"]
[Round "7"]
[White "Aslanov_Umid"]
[Black "ChessPromotionAlex"]
[Result "1-0"]
[WhiteElo "2538"]
[BlackElo "2608"]
[TimeControl "180+1"]
[EndTime "9:21:13 PDT"]
[Termination "Aslanov_Umid won on time"]

1. e4 {[%clk 0:03:00.9]} 1... c5 {[%clk 0:02:52.1]} 2. Nf3 {[%clk 0:03:01]} 2...
d6 {[%clk 0:02:52.4]} 3. d4 {[%clk 0:03:01.6]} 3... cxd4 {[%clk 0:02:53]} 4.
Nxd4 {[%clk 0:03:02.5]} 4... Nf6 {[%clk 0:02:53.3]} 5. Nc3 {[%clk 0:03:03.1]}
5... a6 {[%clk 0:02:53.7]} 6. h3 {[%clk 0:03:03.5]} 6... e6 {[%clk 0:02:52.2]}
7. g4 {[%clk 0:03:03.4]} 7... h6 {[%clk 0:02:52.6]} 8. Be3 {[%clk 0:03:01.8]}
8... b5 {[%clk 0:02:51.8]} 9. a3 {[%clk 0:03:01.5]} 9... Bb7 {[%clk 0:02:49.8]}
10. Bg2 {[%clk 0:03:00.2]} 10... Nbd7 {[%clk 0:02:48.3]} 11. Nb3 {[%clk
0:02:59]} 11... Qc7 {[%clk 0:02:37]} 12. Qd2 {[%clk 0:02:58.1]} 12... Ne5 {[%clk
0:02:34.5]} 13. Qe2 {[%clk 0:02:46.6]} 13... Nc4 {[%clk 0:02:24.9]} 14. Bc1
{[%clk 0:02:46.2]} 14... Be7 {[%clk 0:02:23.1]} 15. Nd2 {[%clk 0:02:41.2]} 15...
Nb6 {[%clk 0:02:07.7]} 16. f4 {[%clk 0:02:34.7]} 16... Nfd7 {[%clk 0:01:57.3]}
17. O-O {[%clk 0:02:33.8]} 17... O-O {[%clk 0:01:54.1]} 18. Nf3 {[%clk
0:02:21.5]} 18... Rfe8 {[%clk 0:01:41.5]} 19. Kh1 {[%clk 0:02:12.9]} 19... Qc4
{[%clk 0:01:37.5]} 20. Qf2 {[%clk 0:02:05.8]} 20... Qc7 {[%clk 0:01:31.2]} 21.
Rd1 {[%clk 0:01:59.2]} 21... Rac8 {[%clk 0:01:22.3]} 22. Nd4 {[%clk 0:01:49.4]}
22... Bf8 {[%clk 0:01:17.5]} 23. f5 {[%clk 0:01:46.6]} 23... Ne5 {[%clk
0:01:14.9]} 24. g5 {[%clk 0:01:39.3]} 24... hxg5 {[%clk 0:01:11.1]} 25. Bxg5
{[%clk 0:01:40.2]} 25... Nbc4 {[%clk 0:01:02.5]} 26. Bc1 {[%clk 0:01:14.2]}
26... Qb6 {[%clk 0:00:46.9]} 27. b3 {[%clk 0:01:00.1]} 27... Nxa3 {[%clk
0:00:45.6]} 28. Bb2 {[%clk 0:01:00.7]} 28... b4 {[%clk 0:00:37]} 29. Na4 {[%clk
0:01:00.5]} 29... Qc7 {[%clk 0:00:29.3]} 30. fxe6 {[%clk 0:00:49.4]} 30... fxe6
{[%clk 0:00:27.5]} 31. Rg1 {[%clk 0:00:34.9]} 31... Re7 {[%clk 0:00:19]} 32.
Rac1 {[%clk 0:00:31.7]} 32... Rce8 {[%clk 0:00:18.2]} 33. Nf3 {[%clk 0:00:31.1]}
33... Nxf3 {[%clk 0:00:17.6]} 34. Bxf3 {[%clk 0:00:32]} 34... Nb5 {[%clk
0:00:16.1]} 35. Bh5 {[%clk 0:00:28.8]} 35... Rc8 {[%clk 0:00:13.4]} 36. Rg4
{[%clk 0:00:28.6]} 36... Nc3 {[%clk 0:00:11.9]} 37. Nxc3 {[%clk 0:00:24.1]}
37... bxc3 {[%clk 0:00:12.8]} 38. Ba3 {[%clk 0:00:25]} 38... Qa5 {[%clk
0:00:12.8]} 39. Rf1 {[%clk 0:00:20.7]} 39... Qxa3 {[%clk 0:00:10.7]} 40. Bf7+
{[%clk 0:00:20.9]} 1-0

[Event "Early-Titled-Tuesday-Blitz-October-17-2023"]
[Site "Chess.com"]
[Date "2023.10.17"]
[Round "7"]
[White "GeorgiosSouleidis"]
[Black "WindWhistler11"]
[Result "1-0"]
[WhiteElo "2615"]
[BlackElo "2462"]
[TimeControl "180+1"]
[EndTime "9:21:13 PDT"]
[Termination "GeorgiosSouleidis won by checkmate"]

1. e4 {[%clk 0:03:00.9]} 1... e6 {[%clk 0:02:58.1]} 2. d4 {[%clk 0:03:00.8]}
2... d5 {[%clk 0:02:58.2]} 3. Nc3 {[%clk 0:03:01.4]} 3... Bb4 {[%clk 0:02:58]}
4. Ne2 {[%clk 0:03:01.1]} 4... Ne7 {[%clk 0:02:57]} 5. a3 {[%clk 0:02:59]} 5...
Ba5 {[%clk 0:02:57.1]} 6. b4 {[%clk 0:02:54.9]} 6... Bb6 {[%clk 0:02:57.6]} 7.
e5 {[%clk 0:02:19.5]} 7... a5 {[%clk 0:02:52.5]} 8. Na4 {[%clk 0:02:04]} 8...
axb4 {[%clk 0:02:45.2]} 9. axb4 {[%clk 0:02:04.9]} 9... Bd7 {[%clk 0:02:44.2]}
10. c3 {[%clk 0:02:04.5]} 10... O-O {[%clk 0:02:36.5]} 11. Bg5 {[%clk
0:01:57.5]} 11... Bxa4 {[%clk 0:02:12.7]} 12. Rxa4 {[%clk 0:01:54.6]} 12... Rxa4
{[%clk 0:02:04.1]} 13. Qxa4 {[%clk 0:01:55.5]} 13... f6 {[%clk 0:02:01.5]} 14.
exf6 {[%clk 0:01:53.7]} 14... gxf6 {[%clk 0:02:02.4]} 15. Bh6 {[%clk 0:01:50.2]}
15... Re8 {[%clk 0:01:50.1]} 16. Ng3 {[%clk 0:01:20.1]} 16... e5 {[%clk
0:01:28.5]} 17. Be3 {[%clk 0:01:18.1]} 17... Ng6 {[%clk 0:01:23.8]} 18. Bb5
{[%clk 0:01:12.5]} 18... c6 {[%clk 0:01:22.8]} 19. Be2 {[%clk 0:01:02.8]} 19...
Nf4 {[%clk 0:01:07.8]} 20. O-O {[%clk 0:00:50.9]} 20... Ne6 {[%clk 0:00:51.2]}
21. dxe5 {[%clk 0:00:43.8]} 21... fxe5 {[%clk 0:00:48.5]} 22. Bh5 {[%clk
0:00:35.3]} 22... Rf8 {[%clk 0:00:46.6]} 23. Bg4 {[%clk 0:00:26.9]} 23... Nf4
{[%clk 0:00:44.5]} 24. Qc2 {[%clk 0:00:17.5]} 24... Qg5 {[%clk 0:00:36.9]} 25.
Qd2 {[%clk 0:00:15.6]} 25... Bxe3 {[%clk 0:00:27.5]} 26. fxe3 {[%clk 0:00:16]}
26... Ng6 {[%clk 0:00:25.7]} 27. Rxf8+ {[%clk 0:00:15.7]} 27... Nxf8 {[%clk
0:00:24.4]} 28. Bc8 {[%clk 0:00:16.6]} 28... Qe7 {[%clk 0:00:18.5]} 29. Qe2
{[%clk 0:00:16]} 29... Ng6 {[%clk 0:00:16.5]} 30. Qg4 {[%clk 0:00:16.1]} 30...
Na6 {[%clk 0:00:14.6]} 31. Nf5 {[%clk 0:00:15.4]} 31... Qf6 {[%clk 0:00:14.2]}
32. h4 {[%clk 0:00:14.7]} 32... Kf8 {[%clk 0:00:11.9]} 33. Bxb7 {[%clk
0:00:14.8]} 33... Nc7 {[%clk 0:00:11.5]} 34. h5 {[%clk 0:00:13.5]} 34... Nh8
{[%clk 0:00:08]} 35. h6 {[%clk 0:00:13.6]} 35... Ne8 {[%clk 0:00:08.3]} 36. Bc8
{[%clk 0:00:09.9]} 36... Ng6 {[%clk 0:00:07.2]} 37. Bd7 {[%clk 0:00:09.4]} 37...
Nc7 {[%clk 0:00:07]} 38. Ng7 {[%clk 0:00:08.4]} 38... Ke7 {[%clk 0:00:06.2]} 39.
Bc8 {[%clk 0:00:08.2]} 39... Kd6 {[%clk 0:00:06]} 40. Qd7# {[%clk 0:00:08.2]}
1-0